bitfinex-derivatives/quotes_ETHF0:USTF0_20260119
["timestamp","ask_amount","ask_price","bid_price","bid_amount"]
[1768862543387,5.79326725,3203.8,3203.6,13.07368838]
[1768862543587,5.79326725,3203.8,3203.5,11.89907571]
[1768862543988,5.79326725,3203.8,3203.7,11.89907571]
[1768862544182,5.79326725,3203.8,3203.0,0.0037284]
[1768862545483,5.79326725,3203.8,3203.5,11.89907571]
[1768862545679,3.29026725,3203.8,3203.5,11.89907571]
[1768862545882,3.29026725,3203.8,3203.7,11.89907571]
[1768862546084,3.29026725,3203.8,3203.5,11.89907571]
[1768862546586,3.29026725,3203.8,3203.7,11.89907571]
[1768862546791,3.29026725,3203.8,3203.5,11.89907571]
[1768862546988,3.29026725,3203.8,3203.7,11.89907571]
[1768862547288,3.29026725,3203.8,3203.5,11.89907571]
[1768862547678,3.29026725,3203.8,3203.7,11.89907571]
[1768862547882,3.29026725,3203.8,3203.5,11.89907571]
[1768862548078,3.29026725,3203.8,3203.7,11.89907571]
[1768862548278,3.29026725,3203.8,3203.5,11.89907571]
[1768862548679,3.29026725,3203.8,3203.7,11.89907571]
[1768862548881,3.29026725,3203.8,3203.5,11.89907571]
[1768862549287,3.29026725,3203.8,3203.7,11.89907571]
[1768862549486,3.29026725,3203.8,3203.5,11.89907571]
[1768862549888,3.29026725,3203.8,3203.7,11.89907571]
[1768862550081,3.28434628,3203.8,3203.7,11.89907571]
[1768862552082,3.49856479,3204.3,3203.7,11.89907571]
[1768862552284,3.4962688,3204.1,3203.7,11.89907571]
[1768862552587,4.39991367,3204.0,3203.7,11.89907571]
[1768862552790,0.90364487,3203.9,3203.7,11.89907571]
[1768862552983,0.90364487,3203.9,3203.0,0.0037284]
[1768862553184,0.90364487,3203.9,3203.6,11.89907571]
[1768862553693,0.90364487,3203.9,3203.8,11.89907571]
[1768862553989,0.90364487,3203.9,3203.6,11.89907571]
[1768862554487,0.90364487,3203.9,3203.8,11.89907571]
[1768862554791,0.90364487,3203.9,3203.6,11.89907571]
[1768862555193,0.90364487,3203.9,3203.8,11.89907571]
[1768862555394,0.90364487,3203.9,3203.6,11.89907571]
[1768862555896,0.90364487,3203.9,3203.8,11.89907571]
[1768862556192,0.90364487,3203.9,3203.6,11.89907571]
[1768862556590,0.90364487,3203.9,3203.8,11.89907571]
[1768862556786,0.90364487,3203.9,3203.6,11.89907571]
[1768862557791,0.90364487,3203.9,3203.7,11.89907571]
[1768862557994,0.90364487,3203.9,3203.6,11.89907571]
[1768862558189,0.90364487,3203.9,3203.7,11.89907571]
[1768862558383,0.90364487,3203.9,3203.0,0.0037284]
[1768862558989,0.90364487,3203.9,3203.6,11.89907571]
[1768862559195,0.90364487,3203.9,3203.0,0.0037284]
[1768862559395,0.90364487,3203.9,3203.7,11.89907571]
[1768862559589,0.90364487,3203.8,3203.7,11.89907571]
[1768862559790,4.60966754,3204.1,3204.0,8.27567799]
[1768862560097,2.01931739,3204.1,3203.7,4.41206588]
[1768862560287,0.90591865,3204.0,3203.6,4.41206588]
[1768862560486,0.90591865,3203.9,3203.6,4.41206588]
[1768862560688,0.90591865,3203.8,3203.0,3.34396858]
[1768862560887,1.11339874,3204.1,3203.7,4.41206588]
[1768862561088,1.11339874,3204.1,3203.6,4.41206588]
[1768862561393,1.11339874,3204.1,3203.7,4.41206588]
[1768862561794,1.11339874,3204.1,3204.0,4.41206588]
[1768862561994,1.11339874,3204.1,3203.7,4.41206588]
[1768862562599,1.11339874,3204.1,3203.0,3.34396858]
[1768862562600,1.11339874,3204.1,3204.0,4.41206588]
[1768862562898,1.11339874,3204.1,3203.7,4.41206588]
[1768862563496,1.11339874,3204.1,3203.0,3.34396858]
[1768862563497,1.11339874,3204.1,3204.0,4.41206588]
[1768862563698,1.11339874,3204.1,3203.7,4.41206588]
[1768862564098,1.11339874,3204.1,3204.0,4.41206588]
[1768862564286,1.77913996,3204.1,3203.7,4.41206588]
[1768862564488,0.90595561,3204.0,3203.7,4.41206588]
[1768862564692,0.87318435,3204.1,3203.9,4.41206588]
[1768862564895,0.87318435,3204.1,3203.7,4.41206588]
[1768862565393,0.87318435,3204.1,3204.0,4.41206588]
[1768862565594,0.87318435,3204.1,3203.7,4.41206588]
[1768862566104,0.87318435,3204.1,3204.0,4.41206588]
[1768862566298,0.87318435,3204.1,3203.7,4.41206588]
[1768862566707,0.87318435,3204.1,3204.0,4.41206588]
[1768862566901,0.87318435,3204.1,3203.7,4.41206588]
[1768862567203,0.90535184,3204.0,3203.7,4.41206588]
[1768862567500,0.90535184,3204.0,3203.0,3.34396858]
[1768862567702,0.90535184,3204.0,3203.8,4.41206588]
[1768862568103,0.90535184,3204.0,3203.0,3.34396858]
[1768862568104,0.90535184,3204.0,3203.9,4.41206588]
[1768862568304,0.90535184,3204.0,3203.8,4.41206588]
[1768862568697,0.90535184,3204.0,3203.9,4.41206588]
[1768862568898,0.87318435,3204.1,3203.7,2.7248673]
[1768862569400,0.87318435,3204.1,3204.0,2.7248673]
[1768862569705,0.87318435,3204.1,3203.7,2.7248673]
[1768862570210,0.87318435,3204.1,3204.0,2.7248673]
[1768862571308,1.66763992,3204.3,3204.0,2.7248673]
[1768862571504,1.66763992,3204.3,3203.0,3.34396858]
[1768862571705,1.66763992,3204.3,3203.7,2.7248673]
[1768862572211,1.66763992,3204.3,3204.1,2.7248673]
[1768862572403,1.66763992,3204.3,3203.7,2.7248673]
[1768862573098,1.66763992,3204.3,3204.0,2.7248673]
[1768862573297,1.66763992,3204.3,3203.7,2.7248673]
[1768862573907,1.66763992,3204.3,3204.1,2.7248673]
[1768862574107,1.66763992,3204.3,3203.7,2.7248673]
[1768862574498,1.66763992,3204.3,3204.1,2.7248673]
[1768862574703,1.66763992,3204.3,3203.7,2.7248673]
[1768862575512,1.66763992,3204.3,3204.1,2.7248673]
[1768862575696,1.66763992,3204.3,3203.7,2.7248673]
[1768862576908,1.66763992,3204.3,3204.1,2.7248673]
[1768862577106,1.66763992,3204.3,3203.7,2.7248673]
[1768862577604,1.66763992,3204.3,3204.1,2.7248673]
[1768862577807,1.66763992,3204.3,3203.7,2.7248673]
[1768862578003,1.66763992,3204.3,3203.9,2.7248673]
[1768862578210,1.66763992,3204.3,3203.3,3.50395443]
[1768862578509,1.66763992,3204.3,3203.9,2.7248673]
[1768862578710,1.66763992,3204.3,3203.3,3.50395443]
[1768862578910,1.66763992,3204.3,3203.8,2.7248673]
[1768862579105,1.66763992,3204.3,3203.9,2.7248673]
[1768862579609,1.66763992,3204.3,3204.2,2.7248673]
[1768862579810,3.87889416,3204.3,3203.3,3.50395443]
[1768862580109,3.55963992,3204.3,3203.3,3.50395443]
[1768862580810,0.89303786,3204.2,3203.3,3.50395443]
[1768862581012,0.89303786,3204.1,3203.3,3.50395443]
[1768862581308,0.89303786,3204.0,3203.3,3.50395443]
[1768862581510,0.89303786,3203.9,3203.3,3.50395443]
[1768862581708,0.89303786,3203.8,3203.3,3.50395443]
[1768862582009,3.55963992,3204.3,3203.3,3.50395443]
[1768862582209,0.89305037,3204.2,3203.3,3.50395443]
[1768862582397,0.89305037,3204.1,3203.3,3.50395443]
[1768862582597,0.89305037,3204.0,3203.3,3.50395443]
[1768862582800,0.89305037,3203.9,3203.3,3.50395443]
[1768862583012,0.89305037,3203.8,3203.3,3.50395443]
[1768862583208,3.55963992,3204.3,3203.3,3.50395443]
[1768862583407,0.89306756,3204.2,3203.3,3.50395443]
[1768862583602,0.89306756,3204.1,3203.3,3.50395443]
[1768862583803,0.89306756,3204.0,3203.3,3.50395443]
[1768862583997,0.89306756,3203.9,3203.3,3.50395443]
[1768862584202,0.89306756,3203.8,3203.3,3.50395443]
[1768862584397,3.55963992,3204.3,3203.3,3.50395443]
[1768862584602,0.89309856,3204.2,3203.3,3.50395443]
[1768862584808,0.89309856,3204.1,3203.3,3.50395443]
[1768862585010,0.89309856,3204.0,3203.3,3.50395443]
[1768862585211,0.89309856,3203.9,3203.3,3.50395443]
[1768862585410,0.89309856,3203.8,3203.3,3.50395443]
[1768862585614,3.55963992,3204.3,3203.3,3.50395443]
[1768862585910,0.89308862,3204.2,3203.3,3.50395443]
[1768862586105,0.89308862,3204.1,3203.3,3.50395443]
[1768862586303,0.89308862,3204.0,3203.3,3.50395443]
[1768862586509,0.89308862,3203.9,3203.3,3.50395443]
[1768862586710,0.89308862,3203.8,3203.3,3.50395443]
[1768862586911,6.06263992,3204.3,3203.3,3.50395443]
[1768862587104,0.8931024,3204.2,3203.3,3.50395443]
[1768862587304,0.8931024,3204.1,3203.3,3.50395443]
[1768862587506,0.8931024,3204.0,3203.3,3.50395443]
[1768862587713,0.8931024,3203.9,3203.3,3.50395443]
[1768862587914,0.8931024,3203.8,3203.3,3.50395443]
[1768862588112,6.06263992,3204.3,3203.3,3.50395443]
[1768862588313,0.89314495,3204.2,3203.3,3.50395443]
[1768862588508,0.89314495,3204.1,3203.3,3.50395443]
[1768862588716,0.89314495,3204.0,3203.3,3.50395443]
[1768862588908,0.89314495,3203.9,3203.3,3.50395443]
[1768862589110,0.89314495,3203.8,3203.3,3.50395443]
[1768862589309,0.8932856,3203.7,3203.3,3.50395443]
[1768862589514,6.06263992,3204.3,3203.3,3.50395443]
[1768862589814,0.89328709,3204.2,3203.3,3.50395443]
[1768862590017,0.89328709,3204.1,3203.3,3.50395443]
[1768862590316,0.89328709,3204.0,3203.3,3.50395443]
[1768862590617,0.89328709,3203.9,3203.3,3.50395443]
[1768862590817,0.89328709,3203.8,3203.3,3.50395443]
[1768862591009,0.89328709,3203.7,3203.3,3.50395443]
[1768862591207,1.66534393,3204.2,3203.3,3.50395443]
[1768862591407,2.55866857,3204.2,3203.3,3.50395443]
[1768862592215,0.89332464,3204.1,3203.3,3.50395443]
[1768862592417,0.89332464,3204.0,3203.3,3.50395443]
[1768862592615,0.89332464,3203.9,3203.3,3.50395443]
[1768862592915,0.89332464,3203.8,3203.3,3.50395443]
[1768862593107,0.89332464,3203.7,3203.3,3.50395443]
[1768862593306,6.06263992,3204.3,3203.3,3.50395443]
[1768862593511,0.89331025,3204.2,3203.3,3.50395443]
[1768862593807,0.89331025,3204.1,3203.3,3.50395443]
[1768862594015,0.89331025,3204.0,3203.3,3.50395443]
[1768862594311,0.89331025,3203.9,3203.3,3.50395443]
[1768862594518,0.89331025,3203.8,3203.3,3.50395443]
[1768862594717,0.89331025,3203.7,3203.3,3.50395443]
[1768862595017,1.11677943,3204.1,3203.3,3.50395443]
[1768862595217,0.89331221,3204.0,3203.3,3.50395443]
[1768862595413,6.06263992,3204.3,3203.4,1.30050164]
[1768862595414,1.11919162,3204.3,3203.4,1.30050164]
[1768862595620,0.00229599,3204.3,3203.4,1.30050164]
[1768862596120,0.00229599,3204.3,3203.1,45.60445607]
[1768862596317,0.00229599,3204.3,3203.2,3.50395443]
[1768862598217,0.00229599,3204.3,3203.1,42.10050164]
[1768862598720,0.00229599,3204.3,3203.1,1.30050164]
[1768862600723,0.00229599,3204.3,3203.1,4.80445607]
[1768862600917,0.00229599,3204.3,3203.1,3.50395443]
[1768862601118,0.00229599,3204.3,3203.1,4.80445607]
[1768862602823,0.00229599,3204.3,3203.2,3.50395443]
[1768862604018,0.00229599,3204.3,3203.0,3.29002258]
[1768862604425,0.00229599,3204.3,3203.1,3.28629418]
[1768862607331,0.88380888,3204.2,3203.1,3.28629418]
[1768862607531,0.88380888,3204.1,3203.1,3.28629418]
[1768862607722,0.00229599,3204.3,3203.1,3.28629418]
[1768862607924,0.88380888,3204.2,3203.1,3.28629418]
[1768862608229,0.88380888,3204.1,3203.1,3.28629418]
[1768862608426,0.00229599,3204.3,3203.1,3.28629418]
[1768862608628,0.88379769,3204.2,3203.1,3.28629418]
[1768862608825,0.88379769,3204.1,3203.0,1.30423004]
[1768862609023,0.88379769,3204.0,3203.0,1.30423004]
[1768862609227,4.78156029,3203.9,3203.0,0.0037284]
[1768862609530,3.48105865,3203.7,3202.3,3.28629418]
[1768862609726,2.1840949,3203.6,3202.3,3.28629418]
[1768862609933,0.88359326,3203.5,3202.2,1.30050164]
[1768862610526,0.88359326,3203.5,3202.2,0.00281812]
[1768862613034,1.30050164,3203.0,3202.2,0.00281812]
[1768862613235,4.78156029,3203.0,3202.2,0.00281812]
[1768862613531,1.30050164,3202.7,3201.5,40.8]
[1768862613731,4.78156029,3202.7,3201.5,40.8]
[1768862613934,3.48105865,3202.5,3201.0,3.28629418]
[1768862614130,0.87987019,3202.4,3201.2,1.30050164]
[1768862614321,4.78156029,3202.7,3201.2,1.30050164]
[1768862614632,3.48105865,3202.5,3201.2,1.30382249]
[1768862618928,3.48105865,3202.5,3201.2,0.00332085]
[1768862624835,3.33074492,3202.4,3201.2,0.00332085]
[1768862627635,3.33074492,3202.2,3201.2,0.00332085]
[1768862628034,2.503,3202.3,3201.2,0.00332085]
[1768862629644,5.83374492,3202.3,3201.2,0.00332085]
[1768862630644,1.893,3202.8,3201.2,0.00332085]
[1768862630645,3.33074492,3202.2,3201.2,0.00332085]
[1768862631636,3.33074492,3202.1,3200.0,0.15634]
[1768862632255,3.33074492,3202.1,3200.1,40.8]
[1768862632642,3.33074492,3202.1,3200.1,40.80276342]
[1768862633153,3.33074492,3202.1,3200.3,3.33133259]
[1768862633536,0.15624,3202.2,3200.3,3.33133259]
[1768862634245,3.54211976,3202.2,3200.3,3.33133259]
[1768862635247,4.26195902,3202.1,3200.3,3.33133259]
[1768862635442,3.38587976,3202.1,3200.3,3.33133259]
[1768862637351,0.877087,3202.0,3200.3,3.33133259]
[1768862637550,0.00303668,3202.0,3200.3,3.33133259]
[1768862637753,0.00303668,3202.0,3200.4,44.13133259]
[1768862638255,0.87782772,3201.9,3200.5,5.225]
[1768862638446,0.00303668,3202.0,3200.5,5.225]
[1768862638646,0.87783241,3201.9,3200.5,5.225]
[1768862638949,0.00303668,3202.0,3200.5,5.225]
[1768862639153,0.87783467,3201.9,3200.5,5.225]
[1768862639353,0.87783467,3201.8,3200.5,5.225]
[1768862639553,0.00303668,3202.0,3200.5,5.225]
[1768862639854,0.87864478,3201.9,3200.5,5.225]
[1768862640155,0.87894842,3201.8,3200.5,5.225]
[1768862640358,0.00303668,3202.0,3200.5,5.225]
[1768862640547,0.87894841,3201.9,3200.5,5.225]
[1768862640855,0.00303668,3202.0,3200.5,5.225]
[1768862640856,0.87894841,3201.8,3200.5,5.225]
[1768862641157,0.00303668,3202.0,3200.5,5.225]
[1768862641350,0.87937792,3201.9,3200.5,5.225]
[1768862641550,0.87937792,3201.8,3200.5,5.225]
[1768862641753,0.87937792,3201.7,3200.5,5.225]
[1768862641954,0.00303668,3202.0,3200.5,5.225]
[1768862642153,0.87975999,3201.9,3200.4,44.13133259]
[1768862642454,0.87975999,3201.8,3200.6,5.229]
[1768862642652,0.87975999,3201.7,3200.6,5.229]
[1768862642854,0.00303668,3202.0,3200.6,5.229]
[1768862643048,0.88026193,3201.9,3200.6,5.229]
[1768862643248,0.88026193,3201.8,3200.6,5.229]
[1768862643450,0.88026193,3201.7,3200.6,5.229]
[1768862643648,0.88026193,3201.6,3200.6,5.229]
[1768862643847,4.49578248,3202.0,3200.6,5.229]
[1768862644165,0.88062134,3201.9,3200.6,5.229]
[1768862644358,0.88062134,3201.8,3200.6,5.229]
[1768862644560,0.88062134,3201.7,3200.6,5.229]
[1768862644760,0.88062134,3201.6,3200.6,8.56033259]
[1768862644961,1.10990272,3202.0,3200.6,8.56033259]
[1768862645959,5.37639119,3202.0,3200.7,5.233]
[1768862646161,0.88060871,3201.9,3200.7,5.233]
[1768862646864,0.88060871,3201.9,3200.6,3.33133259]
[1768862647066,0.88060871,3201.9,3200.7,5.234]
[1768862650267,3.38360871,3201.9,3200.7,5.234]
[1768862650459,0.88060871,3201.8,3200.7,5.234]
[1768862651060,0.88060871,3201.7,3200.7,5.234]
[1768862651261,0.88060871,3201.6,3200.7,5.234]
[1768862651468,4.49578248,3202.0,3200.7,5.234]
[1768862651767,0.88090366,3201.9,3200.7,5.234]
[1768862651968,0.88090366,3201.8,3200.7,5.234]
[1768862652266,0.88090366,3201.7,3200.7,5.234]
[1768862652469,3.38891644,3202.0,3200.7,5.234]
[1768862652669,0.88099682,3201.9,3200.7,5.234]
[1768862652960,0.88099682,3201.8,3200.7,5.234]
[1768862653165,0.88099682,3201.7,3200.7,5.234]
[1768862653365,0.88099682,3201.6,3200.7,5.234]
[1768862653568,4.49578248,3202.0,3200.7,5.234]
[1768862653772,0.88111598,3201.9,3200.7,5.234]
[1768862653964,0.88111598,3201.8,3200.7,5.234]
[1768862654163,0.88111598,3201.7,3200.7,5.234]
[1768862654364,0.88111598,3201.6,3200.7,5.234]
[1768862654566,4.49578248,3202.0,3200.7,5.234]
[1768862654766,0.88137,3201.9,3200.7,5.234]
[1768862654968,0.88137,3201.8,3200.7,5.234]
[1768862655168,0.88137,3201.7,3200.7,5.234]
[1768862655373,0.88137,3201.6,3200.7,5.234]
[1768862655671,0.00303668,3202.0,3200.7,5.234]
[1768862655862,0.88164106,3201.9,3200.8,3.33133259]
[1768862656066,0.00303668,3202.0,3200.8,3.33133259]
[1768862656274,0.88179378,3201.9,3200.8,3.33133259]
[1768862656477,0.00303668,3202.0,3200.8,3.33133259]
[1768862658967,1.10686604,3202.5,3201.0,3.33133259]
[1768862659365,1.10686604,3202.6,3201.0,3.33133259]
[1768862659767,1.10686604,3202.6,3201.0,3.48763259]
[1768862659971,1.10940664,3202.6,3201.1,3.33133259]
[1768862660171,0.0025406,3202.6,3201.1,3.33133259]
[1768862660374,0.0025406,3202.6,3201.3,3.33133259]
[1768862660580,0.0025406,3202.6,3201.5,3.33133259]
[1768862660772,0.0025406,3202.6,3201.6,7.46633259]
[1768862661072,0.0025406,3202.6,3201.7,40.8]
[1768862661977,4.6489358,3203.2,3201.7,40.8]
[1768862662174,3.54206976,3203.2,3201.7,40.8]
[1768862662967,3.54529801,3203.2,3201.7,40.8]
[1768862668383,3.54529801,3203.2,3201.8,3.3991134]
[1768862668884,0.87635272,3203.1,3201.8,3.3991134]
[1768862669076,3.54529801,3203.2,3201.8,3.3991134]
[1768862669275,0.87635275,3203.1,3201.8,3.3991134]
[1768862669477,3.54529801,3203.2,3201.8,3.3991134]
[1768862669676,0.87625675,3203.1,3201.8,3.3991134]
[1768862669877,3.38910801,3203.2,3201.8,3.3991134]
[1768862670083,0.87625921,3203.1,3201.8,3.3991134]
[1768862670378,3.38910801,3203.2,3201.8,3.3991134]
[1768862670574,0.87619815,3203.1,3201.8,3.3991134]
[1768862670777,3.38910801,3203.2,3201.8,3.3991134]
[1768862670977,0.8751834,3203.1,3201.8,3.3991134]
[1768862671178,3.38910801,3203.2,3201.8,3.3991134]
[1768862671385,0.8751398,3203.1,3201.9,40.8]
[1768862671686,3.38910801,3203.2,3201.9,40.8]
[1768862672586,3.38910801,3203.2,3201.8,3.3991134]
[1768862673089,3.38910801,3203.2,3201.9,40.8]
[1768862675486,0.87534183,3203.1,3201.9,40.8]
[1768862675785,3.38910801,3203.2,3201.9,40.8]
[1768862675986,0.00322825,3203.2,3201.9,40.8]
[1768862678389,0.87559584,3203.1,3201.9,40.8]
[1768862678584,0.00322825,3203.2,3201.9,40.8]
[1768862678784,0.87558724,3203.1,3201.9,40.8]
[1768862679086,0.00322825,3203.2,3201.9,40.8]
[1768862679282,0.87558724,3203.1,3201.9,40.8]
[1768862679487,3.53885969,3203.2,3201.9,40.8]
[1768862679676,3.53563144,3203.0,3201.9,40.8]
[1768862679883,3.53563144,3203.0,3201.8,5.266]
[1768862680288,3.53563144,3203.0,3201.8,46.066]
[1768862684886,4.83721063,3203.0,3201.8,46.066]
[1768862685380,0.8776574,3202.9,3201.8,46.066]
[1768862685679,4.83721063,3203.0,3201.8,46.066]
[1768862685879,0.87765742,3202.9,3201.8,46.066]
[1768862686080,4.83721063,3203.0,3201.8,46.066]
[1768862686289,0.87765744,3202.9,3201.8,46.066]
[1768862686491,4.83721063,3203.0,3201.8,46.066]
[1768862686688,0.87795225,3202.9,3201.8,46.066]
[1768862686888,4.83721063,3203.0,3201.8,46.066]
[1768862687091,0.87795225,3202.9,3201.8,46.066]
[1768862687394,0.8782362,3202.8,3201.8,46.066]
[1768862687592,4.83721063,3203.0,3201.8,46.066]
[1768862687793,0.8782362,3202.9,3201.8,46.066]
[1768862688095,0.8782362,3202.8,3201.8,46.066]
[1768862688287,4.83721063,3203.0,3201.8,46.066]
[1768862688485,0.87863063,3202.9,3201.8,46.066]
[1768862688692,0.87863063,3202.8,3201.8,46.066]
[1768862688892,4.83721063,3203.0,3201.8,46.066]
[1768862689091,0.87862959,3202.9,3201.8,46.066]
[1768862689295,0.87862959,3202.8,3201.8,46.066]
[1768862689494,4.83721063,3203.0,3201.8,46.066]
[1768862689696,0.87909518,3202.9,3201.8,46.066]
[1768862689997,0.87909518,3202.8,3201.8,46.066]
[1768862690198,4.83721063,3203.0,3201.8,46.066]
[1768862690389,0.87946595,3202.9,3201.8,46.066]
[1768862693096,4.41200004,3202.9,3201.5,0.15627]
[1768862693298,1.30157919,3202.7,3201.6,3.346]
[1768862693502,0.87946595,3202.6,3201.6,3.346]
[1768862693703,0.87946595,3202.5,3201.6,3.346]
[1768862693892,0.87946595,3202.4,3201.6,3.346]
[1768862694197,1.30157919,3202.7,3201.6,3.346]
[1768862694398,0.87900126,3202.6,3201.6,3.346]
[1768862694594,0.87900126,3202.5,3201.6,3.346]
[1768862694800,0.87900126,3202.4,3201.6,3.346]
[1768862695002,1.30157919,3202.7,3201.6,3.346]
[1768862695200,1.10686604,3202.9,3201.7,3.61362421]
[1768862695600,2.40844523,3203.0,3201.7,3.61362421]
[1768862695800,5.94097932,3203.0,3201.8,5.29]
[1768862697193,2.503,3202.9,3201.8,5.29]
[1768862702913,3.60986604,3203.1,3201.8,5.29]
[1768862707219,0.87223477,3203.0,3201.8,5.29]
[1768862707417,0.87223477,3202.9,3201.8,5.29]
[1768862707714,0.87223477,3202.8,3201.8,5.29]
[1768862707913,0.87223477,3202.7,3201.8,5.29]
[1768862708115,3.60986604,3203.1,3201.8,5.29]
[1768862708423,0.87230386,3203.0,3201.8,5.29]
[1768862708716,0.87230386,3202.9,3201.8,5.29]
[1768862708918,0.87230386,3202.8,3201.8,5.29]
[1768862709218,0.87230386,3202.7,3201.8,5.29]
[1768862709419,1.10686604,3203.1,3201.8,5.29]
[1768862709627,1.97953739,3203.1,3201.8,5.29]
[1768862710416,1.97953739,3203.0,3201.8,5.29]
[1768862710617,0.87267135,3202.9,3201.8,5.29]
[1768862710806,0.87267135,3202.8,3201.8,5.29]
[1768862711006,0.87267135,3202.7,3201.8,5.29]
[1768862711221,0.87267135,3202.6,3201.8,5.29]
[1768862711413,1.10686604,3203.0,3201.8,5.29]
[1768862715922,3.53253409,3202.9,3201.7,1.30157919]
[1768862716130,0.87274918,3202.8,3201.7,1.30157919]
[1768862716332,0.87274918,3202.7,3201.7,1.30157919]
[1768862716528,0.87274918,3202.6,3201.7,1.30157919]
[1768862716729,3.53253409,3202.9,3201.7,1.30157919]
[1768862717031,0.87268526,3202.8,3201.7,1.30157919]
[1768862717330,0.87268526,3202.7,3201.7,1.30157919]
[1768862717622,0.87268526,3202.6,3201.7,1.30157919]
[1768862717828,3.53253409,3202.9,3201.6,5.303]
[1768862718026,0.87272896,3202.8,3201.6,5.303]
[1768862718226,0.87272896,3202.7,3201.6,5.305]
[1768862718431,0.87272896,3202.6,3201.6,5.305]
[1768862718625,3.53253409,3202.9,3201.6,5.305]
[1768862718826,0.8727815,3202.8,3201.6,5.305]
[1768862719026,0.8727815,3202.7,3201.6,5.305]
[1768862719222,0.8727815,3202.6,3201.6,5.305]
[1768862719421,3.53253409,3202.9,3201.6,5.305]
[1768862719622,0.87284437,3202.8,3201.6,5.305]
[1768862719822,0.87284437,3202.7,3201.6,5.305]
[1768862720023,0.87284437,3202.6,3201.6,5.305]
[1768862720224,3.53253409,3202.9,3201.6,5.305]
[1768862720425,0.87293978,3202.8,3201.6,5.305]
[1768862720630,0.87293978,3202.7,3201.6,5.305]
[1768862720834,0.87293978,3202.6,3201.6,5.305]
[1768862721034,3.53253409,3202.9,3201.6,5.305]
[1768862721332,0.87295346,3202.8,3201.6,5.305]
[1768862721532,0.87295346,3202.7,3201.6,5.305]
[1768862721732,0.87295346,3202.6,3201.6,5.305]
[1768862722030,3.53253409,3202.9,3201.6,5.305]
[1768862722233,0.87306034,3202.8,3201.6,5.305]
[1768862722433,0.87306034,3202.7,3201.6,5.305]
[1768862722631,0.87306034,3202.6,3201.6,5.305]
[1768862722839,4.63940013,3202.9,3201.6,5.305]
[1768862723040,0.87322318,3202.8,3201.6,5.305]
[1768862723239,0.87322318,3202.7,3201.6,6.60657919]
[1768862723540,4.63940013,3202.9,3201.6,6.60657919]
[1768862723541,0.87322318,3202.6,3201.6,6.60657919]
[1768862723741,2.503,3202.8,3201.6,6.60657919]
[1768862723941,0.87325388,3202.7,3201.6,6.60657919]
[1768862724147,0.87325388,3202.6,3201.6,6.60657919]
[1768862724330,0.87336824,3202.5,3201.6,10.13848376]
[1768862724535,2.503,3202.8,3201.6,10.13848376]
[1768862724737,0.87336772,3202.7,3201.6,10.13848376]
[1768862724944,0.87336772,3202.6,3201.6,10.13848376]
[1768862725141,0.87336772,3202.5,3201.6,6.60657919]
[1768862725342,3.32692553,3202.6,3200.8,4.02850167]
[1768862725545,3.80457919,3202.8,3201.0,1.30157919]
[1768862725546,3.32692553,3202.4,3201.0,1.30157919]
[1768862725936,3.32692553,3202.4,3201.1,40.8]
[1768862727047,0.87324228,3202.3,3201.1,40.8]
[1768862727249,3.32692553,3202.4,3201.1,40.8]
[1768862732354,3.32692553,3202.4,3201.2,5.322]
[1768862733241,4.62850472,3202.3,3201.2,5.322]
[1768862733447,4.19877796,3202.2,3201.2,5.322]
[1768862733642,3.32692553,3202.2,3201.2,5.322]
[1768862733955,0.87174321,3202.1,3201.1,5.147]
[1768862734147,4.19866874,3202.0,3201.0,5.323]
[1768862734343,3.32692553,3202.0,3201.0,5.241]
[1768862736845,3.32692553,3202.0,3200.8,40.8]
[1768862737850,3.32692553,3202.0,3200.7,6.62457919]
[1768862738359,3.32692553,3202.0,3200.7,47.42457919]
[1768862742050,3.32692553,3202.0,3200.7,6.62457919]
[1768862744066,2.503,3201.9,3200.7,6.62457919]
[1768862745064,3.38342962,3201.5,3200.1,0.00276342]
[1768862745261,4.68500881,3201.3,3200.1,0.00276342]
[1768862745466,3.38342962,3201.2,3200.1,0.00276342]
[1768862745670,3.38342962,3201.2,3200.2,2.93]
[1768862745866,3.38342962,3201.2,3200.1,0.00276342]
[1768862746068,3.38342962,3201.2,3200.1,2.00476342]
[1768862747166,3.38342962,3201.2,3200.1,0.00276342]
[1768862749666,3.38342962,3201.0,3199.5,46.13]
[1768862749970,3.38342962,3201.0,3199.5,5.33]
[1768862750770,3.38342962,3201.0,3199.5,5.33391346]
[1768862751266,3.38342962,3201.0,3199.5,0.00391346]
[1768862752171,4.84275645,3201.0,3199.5,0.00391346]
[1768862752467,3.38342962,3200.8,3199.5,0.00391346]
[1768862752667,3.38744793,3200.8,3199.5,0.00391346]
[1768862752970,3.54375793,3200.8,3199.5,0.00391346]
[1768862754975,3.61794733,3200.6,3199.5,0.00391346]
[1768862756267,3.61794733,3200.6,3198.8,5.327]
[1768862756268,3.61794733,3200.5,3198.8,5.327]
[1768862757266,3.61794733,3200.5,3198.8,5.32951234]
[1768862757472,3.61794733,3200.5,3198.8,0.00251234]
[1768862757684,1.89501831,3200.8,3198.8,0.00251234]
[1768862757685,3.61794733,3200.1,3198.8,0.00251234]
[1768862761085,3.61794733,3199.8,3198.8,0.00251234]
[1768862762376,3.61794733,3199.8,3197.6,1.30302683]
[1768862762377,3.61794733,3199.7,3197.5,0.15647]
[1768862762682,3.61794733,3199.4,3197.5,0.15647]
[1768862762982,3.61794733,3199.4,3197.6,40.8]
[1768862763182,3.61794733,3199.4,3197.8,3.77793346]
[1768862763384,3.61794733,3200.1,3198.0,3.62148346]
[1768862764978,3.61794733,3200.1,3198.0,3.77792346]
[1768862765184,3.61794733,3200.1,3198.2,3.62148346]
[1768862765388,3.61794733,3200.1,3198.4,3.62148346]
[1768862768396,3.61794733,3200.1,3198.5,44.42148346]
[1768862769581,3.61794733,3200.1,3198.6,3.62148346]
[1768862769890,6.12094733,3200.5,3198.6,3.77789346]
[1768862770086,6.12094733,3200.5,3198.8,3.62148346]
[1768862770294,2.503,3200.5,3199.0,3.62148346]
[1768862770493,0.00401831,3200.8,3199.0,3.62148346]
[1768862770494,2.503,3200.7,3199.0,3.62148346]
[1768862771391,0.86573411,3200.6,3199.0,3.62148346]
[1768862771594,0.00401831,3200.8,3199.3,4.92451029]
[1768862771784,0.00401831,3200.8,3199.5,3.62148346]
[1768862771990,4.72481337,3201.3,3199.4,5.317]
[1768862771991,3.61794733,3201.3,3199.8,3.62148346]
[1768862772185,0.15627,3201.6,3199.8,3.62148346]
[1768862772384,0.86640283,3201.5,3199.8,3.62148346]
[1768862772592,0.86640283,3201.4,3199.8,3.62148346]